{"text_format":"1","workbook":"xlsx","n_sheets":1,"sheets":["Matriz"],"not_rendered":{"charts":0,"images":0,"macros":0,"external_links":0,"defined_names":50,"comments":1,"pivot_tables":0},"unopened":[],"bounds":{"document_bytes":16777216,"sheet_cells":100000,"rows_first":2000,"rows_last":500,"rows_between":2000,"halvings":0,"cell_chars":16384,"cell_head_chars":4096},"cells_cut":0,"cells_raw":0,"read":"whole","date_system":"1900"}

{"sheet":"Matriz","index":0,"n_rows":81,"n_cols":48,"rows_kept":81,"cut":false,"hidden":false,"merged":[[78,0,78,1],[79,0,79,1],[80,0,80,1],[68,0,76,1],[68,2,68,8],[69,2,69,8],[70,2,70,8],[71,2,71,8],[72,2,72,8],[73,2,73,8],[74,2,74,8],[75,2,75,8],[76,2,76,8],[13,5,13,6],[13,7,13,8],[58,0,58,10],[61,0,66,1],[61,2,61,8],[62,2,62,8],[63,2,63,8],[64,2,64,8],[65,2,65,8],[66,2,66,8],[12,0,13,0],[12,1,13,1],[12,2,13,2],[12,3,12,10],[13,3,13,4],[7,0,7,1],[7,2,7,8],[8,0,8,1],[8,2,8,8],[10,0,10,10],[1,0,1,10],[2,0,2,10],[4,0,4,10],[6,0,6,1],[6,2,6,3],[6,6,6,7]]}
[null,null,null,null,null,null,null,null,null,null,null,null,null,null,null,null,null,null,null,null,null,null,null,null,null,null,null,null,null,null,null,null,null,null,null,null,null,null,null,null,null,null,null,null,null,null,null,{"$f":"_xlfn._xlws.FILTER(#REF!,#REF!=Matriz!C7)","v":{"$error":"#REF!"}}]
["DIAGNÓSTICO ECONÓMICO DE TRÁMITES ADMINISTRATIVOS "]
[" PLAN DE SIMPLIFICACIÓN DE TRAMITES 2026"]
[]
["NOTA: Antes de completar esta matriz, asegúrese de que todos los trámites administrativos de su institución estén registrados y publicados en la plataforma GOB.EC.\t\t\t\t\t\t\t\t\t"]
[]
["IDENTIFICADOR DEL TRÁMITE:",null,null,null,null,null,"SALARIO:",null,470]
["NOMBRE DEL TRÁMITE:"]
["DESCRIBA SU ESCENARIO ESTÁNDAR:\nRevise el artículo 5.- Escenario estándar 👉🏼 https://bit.ly/3jADaS7",null,null,null,null,null,null,null,null,null,null,null,null,null,null,null,null,"NombreTramite","Costo del requisito (CR) (DÓLARES)","Identificación y comprensión de los requisitos","Realización de reuniones con el personal interno para la gestión del trámite en el caso de personas jurídicas","Reuniones con personal de servicios externos","Recolección de información preexistente","Elaboración y generación de nueva información en horas","Costo del trámite (CT) (DÓLARES)","Tiempo de permanencia en horas (TP)","Número de visitas a la institución (NV)","Costos de cumplimiento de requisitos para el administrado (CRT) - (Cálculo automático - no modificar)","Costo de procedimiento realizado por el administrado (CP) -  (Cálculo automático - no modificar)","Costo de Traslado (CTr) -  (Cálculo automático - no modificar)","Identificación y comprensión de los requisitos - (Cálculo automático - no modificar)","Realización de reuniones con el personal interno del administrado (en el caso de personas jurídicas) para la gestión del trámite (Cálculo automático - no modificar)","Reuniones con personal de servicios externos -  (Cálculo automático - no modificar)","Recolección de información preexistente -  (Cálculo automático - no modificar)","Elaboración y generación de nueva información -   (Cálculo automático - no modificar)","*Llenado de formularios, elaboración de solicitudes y reportes (HORAS)","Tiempo de traslados hacia y desde la institución  (Cálculo automático - no modificar)","*Tiempo de respuesta (HORAS) (Tiempo de Servicio). ","*Otras actividades relacionadas con el trámite (HORAS)","COSTO ADMINISTRATIVO ","COSTO OPORTUNIDAD (CO)","DIAGNÓSTICO ECONÓMICO DEL TRÁMITE\n(Carga administrativa (CgA))"]
[null,null,null,null,null,null,null,null,null,null,null,null,null,null,null,null,null,{"$f":"C8","v":0},{"$f":"costo_requisito","v":0},{"$f":"Iden_Comp_Requisitos","v":0},{"$f":"Gestion_Tramites_P.Juridicas","v":0},{"$f":"Personal_Servicios_Externos","v":0},{"$f":"Recoleccion_Informacion_Preexistente","v":0},{"$f":"Nueva_Informacion_Horas","v":0},{"$f":"CT","v":0},{"$f":"TP","v":0},{"$f":"NV","v":0},{"$f":"CRT","v":0},{"$f":"CP","v":0},{"$f":"CTr","v":0},{"$f":"I.C.R","v":0},{"$f":"R.R.G.T","v":0},{"$f":"R.S.E","v":0},{"$f":"R.I.P","v":0},{"$f":"E.G.N.I","v":0},{"$f":"L.F.E.S.R","v":0},{"$f":"T.T.I","v":0},{"$f":"T.R","v":0},{"$f":"O.A.R.T","v":0},{"$f":"C.A","v":0},{"$f":"C.O","v":0},{"$f":"D.E.T","v":0}]
["POR REQUISITO"]
[]
["REQUISITOS","Indique si el requisito es preexistente","Costo del requisito (CR) (DÓLARES)","COSTO DE OPORTUNIDAD"]
[null,null,null,"Identificación y comprensión de los requisitos",null,"Realización de reuniones con el personal interno para la gestión del trámite en el caso de personas jurídicas",null,"Reuniones con personal de servicios externos",null,"Recolección de información preexistente","Elaboración y generación de nueva información en horas"]
[null,null,null,null,{"$f":"IF(D15=\"Administrado\",0.16,IF(D15=\"Público\",2,IF(D15=\"Privado\",1,0)))","v":0},null,{"$f":"IF(F15=\"Público\",2,IF(F15=\"Privado\",1,\" \"))","v":" "},null,{"$f":"IF(H15=\"Público\",2,IF(H15=\"Privado\",1,\" \"))","v":" "},{"$f":"IF(B15=\"SI\",0.0833333,0)","v":0}]
[null,null,null,null,0,null," ",null," ",{"$f":"IF(B16=\"SI\",0.0833333,0)","v":0},null,null,null,null,null,null,"No se completa totalmente en linea"]
[null,null,null,null,0,null," ",null," ",0]
[null,null,null,null,0,null," ",null," ",0,null,null,null,null,null,null,"EMISOR DE REQUISITO","TIEMPO (HORAS)"]
[null,null,null,null,0,null," ",null," ",0,null,null,null,null,null,null,"Administrado",0.16]
[null,null,null,null,0,null," ",null," ",0,null,null,null,null,null,null,"Público",2]
[null,null,null,null,0,null," ",null," ",0,null,null,null,null,null,null,"Privado",1]
[null,null,null,null,0,null," ",null," ",0]
[null,null,null,null,0,null," ",null," ",0]
[null,null,null,null,0,null," ",null," ",0]
[null,null,null,null,0,null," ",null," ",0,null,null,null,null,null,null,null,"Público",2]
[null,null,null,null,0,null," ",null," ",0,null,null,null,null,null,null,null,"Privado",1]
[null,null,null,null,0,null," ",null," ",0]
[null,null,null,null,0,null," ",null," ",0]
[null,null,null,null,0,null," ",null," ",0,null,null,null,null,null,null,null,"SI",2]
[null,null,null,null,0,null," ",null," ",0,null,null,null,null,null,null,null,"NO",1]
[null,null,null,null,0,null," ",null," ",0]
[null,null,null,null,0,null," ",null," ",0]
[null,null,null,null,0,null," ",null," ",0]
[null,null,null,null,0,null," ",null," ",0]
[null,null,null,null,0,null," ",null," ",0]
[null,null,null,null,0,null," ",null," ",0]
[null,null,null,null,0,null," ",null," ",0]
[null,null,null,null,0,null," ",null," ",0]
[null,null,null,null,0,null," ",null," ",0]
[null,null,null,null,0,null," ",null," ",0]
[null,null,null,null,0,null," ",null," ",0]
[null,null,null,null,0,null," ",null," ",0]
[null,null,null,null,0,null," ",null," ",0]
[null,null,null,null,0,null," ",null," ",0]
[null,null,null,null,0,null," ",null," ",0]
[null,null,null,null,0,null," ",null," ",0]
[null,null,null,null,0,null," ",null," ",0]
[null,null,null,null,0,null," ",null," ",0]
[null,null,null,null,0,null," ",null," ",0]
[null,null,null,null,0,null," ",null," ",0]
[null,null,null,null,0,null," ",null," ",0]
[null,null,null,null,0,null," ",null," ",0]
[null,null,null,null,0,null," ",null," ",0]
[null,null,null,null,0,null," ",null," ",0]
["TOTALES",null,{"$f":"SUM(C15:C54)","v":0},null,{"$f":"SUM(E15:E54)","v":0},null,{"$f":"SUM(G15:G54)","v":0},null,{"$f":"SUM(I15:I54)","v":0},{"$f":"SUM(J15:J54)","v":0},{"$f":"SUM(K15:K54)","v":0}]
[]
[]
[]
["TRÁMITE"]
[]
[]
["COSTO ADMINISTRATIVO",null,"Costo del trámite (CT) (DÓLARES)"]
[null,null,"Tiempo de permanencia en horas (TP)"]
[null,null,"Número de visitas a la institución (NV)"]
[null,null,"Costos de cumplimiento de requisitos para el administrado (CRT) - (Cálculo automático - no modificar)",null,null,null,null,null,null,{"$f":"C55+J62","v":0}]
[null,null,"Costo de procedimiento realizado por el administrado (CP) -  (Cálculo automático - no modificar)",null,null,null,null,null,null,{"$f":"((J63*(1.5*I7))/160)","v":0}]
[null,null,"Costo de Traslado (CTr) -  (Cálculo automático - no modificar)",null,null,null,null,null,null,{"$f":"J64*1","v":0}]
[]
["COSTO OPORTUNIDAD",null,"Identificación y comprensión de los requisitos - (Cálculo automático - no modificar)",null,null,null,null,null,null,{"$f":"E55","v":0}]
[null,null,"Realización de reuniones con el personal interno del administrado (en el caso de personas jurídicas) para la gestión del trámite (Cálculo automático - no modificar)",null,null,null,null,null,null,{"$f":"G55","v":0}]
[null,null,"Reuniones con personal de servicios externos -  (Cálculo automático - no modificar)",null,null,null,null,null,null,{"$f":"I55","v":0}]
[null,null,"Recolección de información preexistente -  (Cálculo automático - no modificar)",null,null,null,null,null,null,{"$f":"J55","v":0}]
[null,null,"Elaboración y generación de nueva información -   (Cálculo automático - no modificar)",null,null,null,null,null,null,{"$f":"Nueva_Informacion_Horas","v":0}]
[null,null,"*Llenado de formularios, elaboración de solicitudes y reportes (HORAS)"]
[null,null,"Tiempo de traslados hacia y desde la institución  (Cálculo automático - no modificar)",null,null,null,null,null,null,{"$f":"2*J64","v":0}]
[null,null,"*Tiempo de respuesta (HORAS) (Tiempo de Servicio). "]
[null,null,"*Otras actividades relacionadas con el trámite (HORAS)"]
[]
["COSTO ADMINISTRATIVO ",null,{"$f":"J65+J66+J67","v":0}]
["COSTO OPORTUNIDAD (CO)",null,{"$f":"(J69+J70+J71+J72+J73+J74+J75+J76+J77)*1.5*I7/160","v":0}]
["DIAGNÓSTICO ECONÓMICO DEL TRÁMITE\n(Carga administrativa (CgA))",null,{"$f":"C79+C80","v":0}]